fUSD/lending_fUSD_20251205
["ID","MTS","AMOUNT","RATE_DAILY","PERIOD"]
[396255910,1764893059157,-199.45,0.00016712,2]
[396255911,1764893059451,-67.58129749,0.00017998,2]
[396255921,1764893324861,-282.18145516,0.00017998,2]
[396255922,1764893371422,1378.0289917,0.00025,120]
[396255937,1764893432121,-300.0,0.00017999,2]
[396255938,1764893432131,-175.62,0.00018722,2]
[396255939,1764893432168,-304.44109419,0.00018722,2]
[396255940,1764893432177,-1200.0,0.00018818,2]
[396255941,1764893432186,-1200.0,0.00018819,2]
[396255942,1764893432195,-277.0,0.00018819,2]
[396255943,1764893432204,-300.0,0.00018819,2]
[396255944,1764893432213,-13993.85197105,0.0001882,2]
[396255945,1764893432224,-541.2698356,0.0001882,2]
[396255959,1764893439559,-373.13893963,0.0001882,2]
[396255960,1764893439809,-553.08108889,0.0001882,2]
[396255974,1764893442561,-1336.80617346,0.0001882,2]
[396255975,1764893442575,-3483.364536,0.0001882,2]
[396255976,1764893442587,-3561.99998,0.0001882,2]
[396255977,1764893442696,-653.7286811,0.0001882,2]
[396255978,1764893442707,-926.039998,0.0001882,2]
[396255979,1764893442779,-2702.3712327,0.0001882,2]
[396255980,1764893442789,-4351.7576164,0.00018848,2]
[396255981,1764893442800,-661.2773159,0.00018848,2]
[396255982,1764893442810,-369.4104201,0.00018849,2]
[396255983,1764893442821,-3084.27318,0.00018849,2]
[396255984,1764893442830,-1691.88379889,0.00018898,2]
[396255985,1764893442840,-167.61,0.00018988,2]
[396255986,1764893442850,-1900.0,0.00018989,2]
[396255987,1764893442859,-1700.0,0.00018989,2]
[396255988,1764893442869,-300.0,0.00018989,2]
[396255989,1764893442879,-1000.0,0.00018989,2]
[396255990,1764893442890,-1000.0,0.00018989,2]
[396255991,1764893442900,-1000.0,0.00018989,2]
[396255992,1764893442910,-542.48471571,0.00018989,2]
[396255993,1764893442921,-311.98467859,0.00018989,2]
[396255994,1764893442934,-145.5306057,0.00018989,2]
[396255995,1764893442943,-379.4020642,0.00018989,2]
[396255997,1764893443213,-620.5979358,0.00018989,2]
[396255998,1764893443222,-1000.0,0.00018989,2]
[396255999,1764893443234,-1000.0,0.00018989,2]
[396256000,1764893443244,-1000.0,0.00018989,2]
[396256001,1764893443254,-1000.0,0.00018989,2]
[396256002,1764893443263,-1000.0,0.00018989,2]
[396256003,1764893443273,-1000.0,0.00018989,2]
[396256004,1764893443282,-574.12855637,0.00018989,2]
[396256005,1764893443292,-151.0,0.00018989,2]
[396256006,1764893443301,-215.0738,0.00018989,2]
[396256007,1764893443311,-1000.0,0.00018999,2]
[396256008,1764893443320,-33931.05549584,0.00019,2]
[396256009,1764893443330,-397.74114239,0.00019,2]
[396256010,1764893443340,-151.0,0.00019,2]
[396256011,1764893443350,-151.0,0.00019,2]
[396256012,1764893443363,-166.66,0.00019217,2]
[396256013,1764893443372,-167.61,0.00019262,2]
[396256014,1764893443381,-1000.0,0.00019416,2]
[396256015,1764893443391,-450.0,0.00019455,2]
[396256016,1764893443402,-167.63,0.00019536,2]
[396256017,1764893443411,-1900.0,0.00019537,2]
[396256018,1764893443421,-595.37131296,0.00019537,2]
[396256019,1764893443430,-494.32,0.00019537,2]
[396256020,1764893443441,-172.57201469,0.00019693,4]
[396256021,1764893443451,-1097.55993018,0.00019771,2]
[396256022,1764893443460,-166.66,0.00019794,2]
[396256023,1764893443470,-1154.98807809,0.0002,5]
[396256024,1764893443481,-1900.0,0.00020085,2]
[396256025,1764893443491,-617.40005154,0.00020085,2]
[396256026,1764893443500,-150.0,0.00020187,2]
[396256027,1764893443509,-150.0,0.00020187,2]
[396256028,1764893443519,-150.0,0.00020187,2]
[396256029,1764893443529,-150.0,0.00020187,2]
[396256030,1764893443538,-500.0,0.00020187,2]
[396256031,1764893443547,-500.0,0.00020187,2]
[396256032,1764893443557,-150.0,0.00020187,2]
[396256033,1764893443567,-150.0,0.00020187,2]
[396256034,1764893443576,-150.0,0.00020187,2]
[396256035,1764893443585,-150.0,0.00020187,2]
[396256036,1764893443594,-150.0,0.00020187,2]
[396256037,1764893443603,-150.0,0.00020187,2]
[396256038,1764893443612,-150.0,0.00020187,2]
[396256039,1764893443622,-150.0,0.00020187,2]
[396256040,1764893443631,-500.0,0.00020187,2]
[396256041,1764893443640,-280.78649494,0.00020187,2]
[396256042,1764893443649,-150.0,0.00020187,2]
[396256043,1764893443659,-150.0,0.00020187,2]
[396256044,1764893443668,-150.0,0.00020187,2]
[396256045,1764893443677,-150.0,0.00020187,2]
[396256046,1764893443686,-150.0,0.00020187,2]
[396256047,1764893443695,-271.87,0.00020187,2]
[396256048,1764893443706,-169.17,0.00020246,2]
[396256049,1764893443715,-150.0,0.00020324,2]
[396256050,1764893443726,-500.0,0.00020324,2]
[396256051,1764893443735,-500.0,0.00020324,2]
[396256052,1764893443745,-150.0,0.00020324,2]
[396256053,1764893443755,-150.0,0.00020324,2]
[396256054,1764893443765,-500.0,0.00020324,2]
[396256055,1764893443775,-290.0,0.00020324,2]
[396256056,1764893443786,-150.0,0.00020324,2]
[396256057,1764893443796,-150.0,0.00020324,2]
[396256058,1764893443805,-150.0,0.00020324,2]
[396256059,1764893443814,-311.1,0.00020358,2]
[396256060,1764893443825,-166.66,0.00020371,2]
[396256061,1764893443835,-5522.0,0.000204,3]
[396256062,1764893443846,-293.95415161,0.00020425,2]
[396256063,1764893443856,-366.34881568,0.00020426,2]
[396256064,1764893443865,-500.0,0.00020461,2]
[396256065,1764893443875,-500.0,0.00020461,2]
[396256066,1764893443885,-200.0,0.00020461,2]
[396256067,1764893443894,-200.0,0.00020461,2]
[396256068,1764893443903,-500.0,0.00020461,2]
[396256069,1764893443913,-200.0,0.00020461,2]
[396256070,1764893443923,-150.0,0.00020461,2]
[396256071,1764893443932,-150.0,0.00020461,2]
[396256072,1764893443943,-1000.0,0.000205,2]
[396256073,1764893443952,-1000.0,0.000205,2]
[396256074,1764893443963,-420.0,0.00020516,2]
[396256075,1764893443974,-500.0,0.00020598,2]
[396256076,1764893443984,-500.0,0.00020598,2]
[396256077,1764893443993,-500.0,0.00020598,2]
[396256078,1764893444004,-200.0,0.00020598,2]
[396256079,1764893444013,-159.0,0.00020598,2]
[396256080,1764893444024,-1000.0,0.000206,2]
[396256081,1764893444035,-1680.0,0.00020615,2]
[396256082,1764893444045,-1900.0,0.00020633,2]
[396256083,1764893444055,-507.88925245,0.00020633,2]
[396256084,1764893444065,-1006.0,0.000207,2]
[396256085,1764893444075,-200.0,0.00020735,2]
[396256086,1764893444084,-500.0,0.00020735,2]
[396256087,1764893444094,-644.28034969,0.00020735,2]
[396256088,1764893444103,-202.08997699,0.00020787,2]
[396256089,1764893444114,-500.0,0.00020787,2]
[396256090,1764893444125,-150.0,0.00020787,2]
[396256091,1764893444134,-150.0,0.00020787,2]
[396256092,1764893444145,-500.0,0.00020787,2]
[396256093,1764893444156,-150.0,0.00020787,2]
[396256094,1764893444167,-150.0,0.00020787,2]
[396256095,1764893444177,-500.0,0.00020787,2]
[396256096,1764893444187,-267.47017482,0.00020787,2]
[396256097,1764893444196,-150.0,0.00020787,2]
[396256098,1764893444207,-1097.0,0.00020812,2]
[396256099,1764893444216,-500.0,0.00020872,2]
[396256100,1764893444228,-5524.0,0.000209,5]
[396256101,1764893444238,-500.0,0.00020924,2]
[396256102,1764893444248,-500.0,0.00020924,2]
[396256103,1764893444259,-150.0,0.00020924,2]
[396256104,1764893444269,-500.0,0.00020924,2]
[396256105,1764893444278,-150.0,0.00020924,2]
[396256106,1764893444287,-999.99,0.00020951,2]
[396256107,1764893444297,-809.05,0.00020951,2]
[396256108,1764893444306,-623.74,0.00020951,2]
[396256109,1764893444317,-6590.8,0.00020951,2]
[396256110,1764893444327,-2853.81,0.00020951,2]
[396256111,1764893444338,-500.0,0.00021009,2]
[396256112,1764893444349,-500.0,0.00021061,2]
[396256113,1764893444359,-500.0,0.00021061,2]
[396256114,1764893444372,-200.0,0.00021061,2]
[396256115,1764893444384,-500.0,0.00021061,2]
[396256116,1764893444393,-200.0,0.00021061,2]
[396256117,1764893444404,-600.0,0.00021069,2]
[396256118,1764893444414,-500.0,0.00021146,2]
[396256119,1764893444423,-1900.0,0.00021181,2]
[396256120,1764893444433,-661.2773159,0.00021182,2]
[396256121,1764893444444,-500.0,0.00021198,2]
[396256122,1764893444454,-500.0,0.00021198,2]
[396256123,1764893444465,-500.0,0.00021198,2]
[396256124,1764893444475,-369.4104201,0.00021228,2]
[396256125,1764893444485,-4351.7576164,0.00021234,2]
[396256126,1764893444494,-3084.27318,0.00021239,2]
[396256127,1764893444505,-1000.0,0.000213,2]
[396256128,1764893444514,-500.0,0.00021335,2]
[396256129,1764893444524,-500.0,0.00021335,2]
[396256130,1764893444534,-500.0,0.00021335,2]
[396256131,1764893444544,-522.40824377,0.00021472,2]
[396256132,1764893444554,-500.0,0.00021472,2]
[396256133,1764893444564,-57242.57806369,0.000215,2]
[396256134,1764893444576,-1000.0,0.00021573,2]
[396256135,1764893444585,-500.0,0.00021609,2]
[396256136,1764893444596,-600.0,0.00021617,2]
[396256137,1764893444607,-186.74381852,0.00021674,2]
[396256138,1764893444617,-404.08354175,0.00021727,2]
[396256139,1764893444627,-500.0,0.00021746,2]
[396256140,1764893444639,-484.32,0.00021874,2]
[396256141,1764893444650,-500.0,0.00021883,2]
[396256142,1764893444661,-1097.0,0.00021907,2]
[396256143,1764893444673,-5000.0,0.00021918,2]
[396256144,1764893444684,-494.32,0.0002198,2]
[396256145,1764893444694,-200.0,0.0002202,2]
[396256146,1764893444705,-600.0,0.00022165,5]
[396256147,1764893444715,-587.0,0.00022367,2]
[396256148,1764893444725,-745.91,0.00022543,2]
[396256149,1764893444735,-2190.0,0.00022584,2]
[396256150,1764893444746,-600.0,0.00022712,5]
[396256151,1764893444759,-169.17,0.00022777,2]
[396256152,1764893444770,-1097.0,0.0002306,2]
[396256153,1764893444780,-500.0,0.00023199,2]
[396256154,1764893444791,-500.0,0.00023199,2]
[396256155,1764893444800,-500.0,0.00023199,2]
[396256156,1764893444810,-51882.09073601,0.000232,2]
[396256157,1764893444820,-600.0,0.0002326,5]
[396256158,1764893444830,-661.2773159,0.00023516,2]
[396256159,1764893444839,-491.4419308,0.00023529,2]
[396256160,1764893444849,-369.4104201,0.00023608,2]
[396256161,1764893444860,-4351.7576164,0.0002362,2]
[396256162,1764893444870,-3084.27318,0.00023629,2]
[396256163,1764893444880,-1000.0,0.00023731,2]
[396256164,1764893444890,-159.64069229,0.00023803,2]
[396256165,1764893444899,-600.0,0.00023808,5]
[396256166,1764893444909,-302.46560032,0.0002399,2]
[396256167,1764893444921,-1097.0,0.00024274,2]
[396256168,1764893444932,-600.0,0.00024356,5]
[396256169,1764893444942,-823.0,0.00024385,2]
[396256170,1764893444952,-494.32,0.00024422,2]
[396256171,1764893444963,-500.0,0.00024657,2]
[396256172,1764893444973,-1264.62,0.00024658,30]
[396256173,1764893444984,-1000.0,0.00024658,2]
[396256174,1764893444994,-491.44193073,0.00024725,2]
[396256175,1764893445004,-5157.0,0.00024799,2]
[396256176,1764893445014,-1147.04431929,0.00024889,2]
[396256177,1764893445024,-1672.0,0.000249,2]
[396256178,1764893445034,-600.0,0.00024904,5]
[396256179,1764893445045,-23910.7586497,0.0002497,3]
[396256180,1764893445056,-107598.413924,0.0002499,3]
[396256181,1764893445067,-510.42176971,0.00024999,2]
[396256182,1764893445076,-500.0,0.00024999,2]
[396256183,1764893445087,-500.0,0.00024999,2]
[396256184,1764893445097,-200078.10142392,0.00025,2]
[396256185,1764893445106,-151.0,0.00025,2]
[396256186,1764893445117,-169.17,0.00025308,2]
[396256187,1764893445127,-600.0,0.00025452,5]
[396256188,1764893445137,-1097.0,0.00025552,2]
[396256189,1764893445146,-1147.04431927,0.00025668,2]
[396256190,1764893445156,-661.2773159,0.0002585,2]
[396256191,1764893445166,-1000.0,0.00025888,2]
[396256192,1764893445176,-491.44193073,0.00025921,2]
[396256193,1764893445186,-369.4104201,0.00025987,2]
[396256194,1764893445196,-600.0,0.00026,5]
[396256195,1764893445206,-4351.7576164,0.00026006,2]
[396256196,1764893445219,-3084.27318,0.00026019,2]
[396256197,1764893445230,-1147.04431927,0.00026447,2]
[396256198,1764893445239,-600.0,0.00026548,5]
[396256199,1764893445248,-1152.0,0.00026584,2]
[396256200,1764893445258,-271.87,0.00026676,2]
[396256201,1764893445268,-494.32,0.00026864,120]
[396256202,1764893445278,-1097.0,0.00026897,2]
[396256203,1764893445287,-600.0,0.00027096,5]
[396256204,1764893445296,-491.44193073,0.00027117,2]
[396256205,1764893445305,-1147.04431927,0.00027226,2]
[396256206,1764893445316,-500.0,0.00027397,14]
[396256207,1764893445325,-150.0,0.00027397,5]
[396256208,1764893445336,-158.9955506,0.00027397,5]
[396256209,1764893445353,-6508.0,0.00027603,2]
[396256210,1764893445369,-562.0,0.00027603,2]
[396256211,1764893445533,-252.0,0.00027603,2]
[396256212,1764893445543,-4601.209,0.00027603,2]
[396256213,1764893445553,-600.0,0.00027644,15]
[396256214,1764893445562,-11955.3793249,0.00027758,3]
[396256215,1764893445572,-8263.84,0.00027768,2]
[396256216,1764893445581,-284.15,0.00027792,2]
[396256217,1764893445591,-169.17,0.00027839,2]
[396256219,1764893445600,-250.0,0.00027945,5]
[396256221,1764893445610,-1214.85,0.00027945,2]
[396256222,1764893445621,-1214.85,0.00027945,2]
[396256223,1764893445630,-1214.85,0.00027945,2]
[396256224,1764893445642,-1214.85,0.00027945,2]
[396256225,1764893445653,-1214.85,0.00027945,2]
[396256226,1764893445663,-500.49,0.00027945,2]
[396256227,1764893445673,-8403.36421678,0.00027995,3]
[396256228,1764893445682,-1147.04431927,0.00028005,2]
[396256229,1764893445691,-284.15,0.00028089,2]
[396256230,1764893445701,-600.0,0.00028192,15]
[396256231,1764893445711,-1000.0,0.000282,2]
[396256232,1764893445720,-150.0,0.000282,14]
[396256233,1764893445731,-1097.0,0.00028241,5]
[396256234,1764893445741,-491.44193073,0.00028312,2]
[396256235,1764893445750,-350.0,0.00028493,5]
[396256236,1764893445760,-151.0,0.000285,2]
[396256237,1764893445770,-168.0,0.00028553,2]
[396256238,1764893445779,-168.0,0.00028643,2]
[396256239,1764893445789,-600.0,0.0002874,15]
[396256240,1764893445798,-170.08,0.00028767,2]
[396256241,1764893445807,-150.0,0.00028767,2]
[396256242,1764893445821,-150.0,0.00028767,2]
[396256243,1764893445837,-1147.04431927,0.00028784,2]
[396256244,1764893445847,-150.0,0.00028903,2]
[396256245,1764893445856,-211.0,0.00028903,2]
[396256246,1764893445866,-200.0,0.00028903,2]
[396256247,1764893445876,-260.0,0.00028903,2]
[396256248,1764893445886,-210.348,0.00028903,2]
[396256249,1764893445896,-214.963,0.00028903,2]
[396256250,1764893445905,-220.722,0.00028903,2]
[396256251,1764893445915,-193.419,0.00028903,2]
[396256252,1764893445924,-154.793,0.00028903,2]
[396256253,1764893445934,-651.0,0.00028982,2]
[396256254,1764893445943,-11955.3793249,0.00028993,3]
[396256255,1764893445953,-8403.36421678,0.00028993,3]
[396256256,1764893445962,-189.8,0.00029003,2]
[396256257,1764893445971,-250.0,0.00029003,2]
[396256258,1764893445981,-210.873,0.00029003,2]
[396256259,1764893445990,-250.0,0.00029003,2]
[396256260,1764893446000,-163.0,0.00029003,2]
[396256261,1764893446009,-224.712,0.00029003,2]
[396256262,1764893446018,-1604.0,0.00029003,2]
[396256263,1764893446028,-3444.0,0.00029003,2]
[396256264,1764893446037,-160.641,0.00029003,2]
[396256265,1764893446046,-617.633,0.00029003,2]
[396256266,1764893446055,-1322.0,0.00029003,2]
[396256267,1764893446065,-678.409,0.00029003,2]
[396256268,1764893446074,-1263.732,0.00029003,2]
[396256269,1764893446083,-450.0,0.00029041,5]
[396256270,1764893446093,-168.0,0.00029169,2]
[396256271,1764893446103,-600.0,0.00029288,15]
[396256272,1764893446112,-494.32,0.00029306,120]
[396256273,1764893446122,-168.0,0.00029356,2]
[396256274,1764893446132,-168.0,0.00029375,2]
[396256275,1764893446142,-183.0,0.00029378,2]
[396256276,1764893446151,-11955.3793249,0.00029471,3]
[396256277,1764893446162,-16806.7284336,0.00029471,3]
[396256278,1764893446171,-30210.72836485,0.00029481,2]
[396256279,1764893446181,-168.0,0.00029497,2]
[396256280,1764893446191,-183.0,0.000295,2]
[396256281,1764893446201,-491.44193073,0.00029508,2]
[396256282,1764893446211,-1147.04431927,0.00029563,2]
[396256283,1764893446221,-300.0,0.00029589,5]
[396256284,1764893446233,-1014.142,0.000296,23]
[396256285,1764893446242,-187.2,0.000296,23]
[396256286,1764893446251,-11955.3793249,0.00029643,3]
[396256287,1764893446261,-1097.0,0.00029653,5]
[396256288,1764893446270,-1264.62,0.00029704,30]
[396256289,1764893446280,-600.0,0.00029836,15]
[396256290,1764893446290,-8403.36421678,0.0002999,3]
[396256291,1764893446300,-18375.0,0.0003,2]
[396256292,1764893446311,-151.0,0.0003,5]
[396256293,1764893446320,-1000.0,0.0003,2]
[396256294,1764893446329,-183.0,0.00030026,7]
[396256295,1764893446339,-168.0,0.00030089,2]
[396256296,1764893446348,-181.56307452,0.00030137,5]
[396256297,1764893446357,-317.0,0.00030137,30]
[396256298,1764893446370,-11955.3793249,0.00030168,3]
[396256299,1764893446379,-8403.36421678,0.00030168,3]
[396256300,1764893446389,-4563.0,0.00030178,2]
[396256301,1764893446399,-168.0,0.00030242,2]
[396256302,1764893446408,-500.0,0.0003029,30]
[396256303,1764893446417,-500.0,0.0003029,30]
[396256304,1764893446427,-500.0,0.0003029,30]
[396256305,1764893446440,-500.0,0.0003029,30]
[396256306,1764893446449,-500.0,0.0003029,30]
[396256307,1764893446459,-500.0,0.0003029,30]
[396256308,1764893446469,-500.0,0.0003029,30]
[396256309,1764893446479,-1147.04431927,0.00030342,2]
[396256310,1764893446488,-4563.0,0.00030357,7]
[396256311,1764893446499,-169.17,0.00030369,2]
[396256312,1764893446508,-514.16,0.00030384,15]
[396256313,1764893446518,-1000.0,0.000307,2]
[396256314,1764893446528,-491.44193073,0.00030704,2]
[396256315,1764893446538,-1147.04431927,0.00031121,2]
[396256316,1764893446547,-1097.0,0.00031136,5]
[396256317,1764893446556,-1000.0,0.00031241,2]
[396256318,1764893446566,-1000.0,0.0003125,2]
[396256319,1764893446575,-168.0,0.00031271,2]
[396256320,1764893446584,-1000.0,0.00031307,2]
[396256321,1764893446594,-1000.0,0.00031309,2]
[396256322,1764893446603,-168.0,0.00031325,2]
[396256323,1764893446614,-1000.0,0.00031356,2]
[396256324,1764893446624,-1000.0,0.00031366,2]
[396256325,1764893446635,-168.0,0.00031385,2]
[396256326,1764893446644,-150.0,0.000314,5]
[396256327,1764893446654,-168.0,0.00031416,2]
[396256328,1764893446664,-8403.36421678,0.00031478,3]
[396256329,1764893446673,-168.0,0.00031586,2]
[396256330,1764893446684,-886.66940134,0.000317,2]
[396256331,1764893446693,-168.0,0.0003178,2]
[396256332,1764893446703,-162.52615634,0.0003183,18]
[396256333,1764893446713,-151.0,0.00031868,7]
[396256334,1764893446723,-11955.3793249,0.00031871,3]
[396256335,1764893446734,-150.0,0.00031881,2]
[396256336,1764893446744,-477.92066011,0.00031881,2]
[396256337,1764893446753,-150.0,0.00031881,2]
[396256338,1764893446764,-793.87912213,0.00031881,2]
[396256339,1764893446776,-150.0,0.00031881,2]
[396256340,1764893446786,-697.66863107,0.00031881,2]
[396256341,1764893446796,-500.0,0.00031898,2]
[396256342,1764893446806,-10000.0,0.000319,2]
[396256343,1764893446815,-491.44193073,0.000319,2]
[396256344,1764893446825,-1147.04431927,0.000319,2]
[396256345,1764893446835,-885.41131826,0.000319,2]
[396256346,1764893446844,-150.0,0.00031903,2]
[396256347,1764893446855,-150.0,0.00031903,2]
[396256348,1764893446871,-155419.931223,0.0003192,3]
[396256349,1764893446881,-159663.920119,0.0003192,3]
[396256350,1764893446891,-500.0,0.00031929,2]
[396256351,1764893446902,-308849.03347581,0.0003193,7]
[396256352,1764893446911,-168.0,0.0003193,2]
[396256353,1764893446921,-400.0,0.0003197,2]
[396256354,1764893446931,-400.0,0.0003197,2]
[396256355,1764893446940,-402.42592039,0.0003197,2]
[396256356,1764893446950,-400.0,0.0003197,2]
[396256357,1764893446960,-400.0,0.0003197,2]
[396256358,1764893446971,-400.0,0.0003197,2]
[396256359,1764893446980,-401.50200212,0.0003197,2]
[396256360,1764893446991,-151.0,0.00031987,7]
[396256361,1764893447001,-203241.448523,0.0003199,3]
[396256362,1764893447011,-277311.019154,0.0003199,3]
[396256363,1764893447021,-197.30401532,0.00031997,7]
[396256364,1764893447031,-300.0,0.00031999,10]
[396256365,1764893447040,-300.0,0.00031999,10]
[396256366,1764893447050,-150.0,0.00031999,20]
[396256367,1764893447060,-500.0,0.00031999,2]
[396256368,1764893447070,-500.0,0.00031999,2]
[396256369,1764893447080,-500.0,0.00031999,2]
[396256370,1764893447090,-500.0,0.00031999,2]
[396256371,1764893447100,-500.0,0.00031999,2]
[396256372,1764893447110,-500.0,0.00031999,2]
[396256373,1764893447120,-500.0,0.00031999,2]
[396256374,1764893447131,-500.0,0.00031999,2]
[396256375,1764893447141,-500.0,0.00031999,2]
[396256376,1764893447150,-500.0,0.00031999,2]
[396256377,1764893447160,-254.83074535,0.00031999,2]
[396256378,1764893447170,-2458378.78125164,0.00032,2]
[396256379,1764893447179,-694086.30825277,0.00032,2]
[396256380,1764893447195,-1216.89208878,0.00032,2]
[396256381,1764893447210,-347.053942,0.00032,2]
[396256382,1764893447222,-12408.73616938,0.00032,2]
[396256383,1764893447294,-291.71752767,0.00032,2]
[396256384,1764893450174,-3265.8690525,0.00032,2]
[396256385,1764893450187,-6411.50387926,0.00032,2]
[396256386,1764893450200,-1350.77781384,0.00032,2]
[396256387,1764893450212,-4040.7447609,0.00032,2]
[396256388,1764893450323,-4221.4,0.00032,2]
[396256389,1764893450486,-700.53782515,0.00032,2]
[396256390,1764893450498,-937.09794417,0.00032,2]
[396256391,1764893453295,-150.0,0.000282,14]
[396256392,1764893453305,-8281.67405302,0.00032,2]
[396256393,1764893453338,-2910.41041625,0.00032,2]
[396256394,1764893453350,-421.265,0.00032,2]
[396256395,1764893453362,-446.54033922,0.00032,2]
[396256396,1764893453379,-871.56206,0.00032,2]
[396256397,1764893453390,-476.81484365,0.00032,2]
[396256398,1764893453403,-4868.48281942,0.00032,2]
[396256399,1764893453414,-5708.928,0.00032,2]
[396256400,1764893453426,-1950.21131037,0.00032,2]
[396256401,1764893453440,-317.64397191,0.00032,2]
[396256402,1764893453515,-336.88877942,0.000319,2]
[396256403,1764893453525,-530.20987993,0.00032,2]
[396256404,1764893453535,-4991.01675816,0.00032,2]
[396256405,1764893453547,-253.52,0.00032,2]
[396256406,1764893453558,-1547.45823865,0.00032,2]
[396256407,1764893453601,-19315.81352438,0.00032,2]
[396256408,1764893453612,-642.45849486,0.00032,2]
[396256409,1764893453623,-4097.16823048,0.00032,2]
[396256475,1764894265255,163.12,0.0001338,2]
[396256476,1764894265403,163.12,0.00014084,2]
[396256477,1764894265475,163.12,0.00014789,2]
[396256478,1764894265718,163.12,0.00015493,2]
[396256479,1764894265936,163.12,0.00016197,2]
[396256480,1764894266190,163.12,0.00016901,2]
[396256481,1764894266525,163.12,0.00017605,2]
[396256487,1764894275845,-163.12,0.0001831,2]
[396256488,1764894275869,-48.12183232,0.00019014,2]
[396256489,1764894310375,18858.16,0.00018,2]
[396256490,1764894312718,-176.62007242,0.00018,2]
[396256493,1764894316737,-323.38931342,0.00018,2]
[396256494,1764894320963,-246.26604534,0.00018,2]
[396256516,1764894485876,-226.05584263,0.00016999,2]
[396256521,1764894583384,-300.0,0.00016999,2]
[396256522,1764894583409,-500.0,0.00016999,2]
[396256523,1764894583435,-500.0,0.00016999,2]
[396256524,1764894583698,-500.0,0.00016999,2]
[396256525,1764894583726,-409.77187387,0.00016999,2]
[396256526,1764894583758,-500.0,0.00016999,2]
[396256527,1764894583788,-500.0,0.00016999,2]
[396256528,1764894583818,-500.0,0.00016999,2]
[396256529,1764894583847,-500.0,0.00016999,2]
[396256530,1764894583877,-500.0,0.00016999,2]
[396256531,1764894583906,-618.95444101,0.00016999,2]
[396256532,1764894583936,-500.0,0.00016999,2]
[396256533,1764894583966,-500.0,0.00016999,2]
[396256534,1764894583996,-500.0,0.00016999,2]
[396256535,1764894584025,-500.0,0.00016999,2]
[396256536,1764894584057,-500.0,0.00016999,2]
[396256537,1764894584087,-500.0,0.00016999,2]
[396256538,1764894584117,-500.0,0.00016999,2]
[396256539,1764894584147,-500.0,0.00016999,2]
[396256540,1764894584178,-500.0,0.00016999,2]
[396256541,1764894584209,-500.0,0.00016999,2]
[396256542,1764894584240,-500.0,0.00016999,2]
[396256543,1764894584270,-500.0,0.00016999,2]
[396256544,1764894584300,-500.0,0.00016999,2]
[396256545,1764894584331,-500.0,0.00016999,2]
[396256546,1764894584362,-500.0,0.00016999,2]
[396256547,1764894584392,-500.0,0.00016999,2]
[396256548,1764894584422,-500.0,0.00016999,2]
[396256549,1764894584452,-500.0,0.00016999,2]
[396256550,1764894584481,-500.0,0.00016999,2]
[396256551,1764894584511,-500.0,0.00016999,2]
[396256552,1764894584539,-500.0,0.00016999,2]
[396256553,1764894584568,-500.0,0.00016999,2]
[396256554,1764894584597,-500.0,0.00016999,2]
[396256555,1764894584627,-500.0,0.00016999,2]
[396256556,1764894584657,-500.0,0.00016999,2]
[396256557,1764894584686,-500.0,0.00016999,2]
[396256558,1764894584716,-500.0,0.00016999,2]